bitfinex-derivatives/quotes_ETHF0:USTF0_20250824
["timestamp","ask_amount","ask_price","bid_price","bid_amount"]
[1756034426351,0.2256,4727.6,4727.5,1.1714]
[1756034427655,0.4448,4728.1,4727.6,0.4717]
[1756034427955,0.2256,4728.1,4728.0,1.1714]
[1756034428162,0.2256,4728.4,4728.3,0.5403]
[1756034428353,1.3402,4727.9,4727.7,0.25]
[1756034428658,1.3402,4727.8,4727.7,1.012]
[1756034428849,1.3402,4727.8,4727.7,0.3175]
[1756034429058,1.3402,4727.0,4726.9,0.3175]
[1756034429353,0.03681988,4729.8,4726.5,1.012]
[1756034429354,0.5392,4726.6,4726.5,1.012]
[1756034429552,0.0211,4729.4,4726.5,1.1714]
[1756034429751,0.8221,4729.1,4726.6,0.6311]
[1756034429955,0.50076031,4729.3,4726.6,0.6311]
[1756034429956,0.0211,4728.8,4726.6,0.1594]
[1756034430152,0.50076031,4728.7,4726.8,0.25]
[1756034430353,0.3918,4727.0,4726.9,0.762]
[1756034430554,0.6174,4727.0,4726.9,1.012]
[1756034431162,0.2359,4726.3,4726.2,1.012]
[1756034431364,0.3815,4726.3,4726.2,1.012]
[1756034432059,0.5289,4724.9,4724.8,0.4728]
[1756034432256,0.7481,4724.9,4724.8,1.012]
[1756034432458,0.373,4724.9,4724.8,1.012]
[1756034432657,0.7481,4725.4,4725.3,0.5403]
[1756034432951,0.7481,4725.4,4725.3,1.012]
[1756034433162,1.3402,4725.4,4725.3,0.6285]
[1756034433458,1.3402,4725.1,4725.0,1.012]
[1756034434464,1.3402,4725.1,4725.0,0.3175]
[1756034434658,0.7648,4725.1,4725.0,1.012]
[1756034434866,0.2256,4725.1,4725.0,1.1718]
[1756034435654,0.801,4726.0,4725.3,0.9501]
[1756034435856,0.3815,4726.0,4725.9,1.012]
[1756034436059,1.3402,4726.0,4725.9,1.012]
[1756034436958,0.984,4726.0,4725.9,1.012]
[1756034437159,0.2271,4726.4,4725.9,0.7003]
[1756034437359,0.2271,4726.4,4726.3,1.0091]
[1756034438270,0.2271,4726.4,4726.3,1.1691]
[1756034438462,0.2271,4726.7,4726.3,0.5308]
[1756034438666,0.2271,4726.7,4726.6,1.0091]
[1756034439167,0.2271,4726.7,4726.6,1.1691]
[1756034440168,0.2271,4726.7,4726.6,1.0091]
[1756034441466,0.2271,4726.7,4726.6,1.1691]
[1756034441860,0.2271,4726.7,4726.6,1.0091]
[1756034442060,0.3754,4726.7,4726.6,1.0091]
[1756034442260,0.5965,4726.7,4726.6,1.0091]
[1756034442464,1.3282,4726.7,4726.6,1.0091]
[1756034443665,1.3282,4726.0,4725.9,0.6323]
[1756034444166,0.5298,4725.7,4725.6,30.483]
[1756034444365,30.65519222,4729.5,4726.1,0.3785]
[1756034444366,0.239,4726.2,4726.1,0.3785]
[1756034444664,32.53408183,4729.5,4726.3,0.4783]
[1756034444665,0.7984,4728.4,4726.3,0.4783]
[1756034444868,0.5298,4726.4,4726.3,0.4783]
[1756034445063,1.3282,4726.4,4726.3,0.6294]
[1756034445465,1.3282,4726.4,4726.3,0.7817]
[1756034445661,1.3282,4726.4,4726.3,1.0091]
[1756034446764,0.9288,4726.4,4726.3,1.0091]
[1756034446962,0.2271,4727.0,4726.4,0.3874]
[1756034447162,0.7138,4727.3,4727.2,0.7582]
[1756034447361,0.8621,4727.3,4727.2,1.0091]
[1756034447566,1.1011,4727.3,4727.2,1.0091]
[1756034447764,1.3282,4727.3,4727.2,0.5337]
[1756034447970,1.3282,4727.3,4726.8,0.2509]
[1756034447971,1.3282,4726.9,4726.8,0.154]
[1756034448671,1.3282,4726.9,4726.8,0.3063]
[1756034448872,1.3282,4726.9,4726.8,0.7846]
[1756034449359,1.0892,4726.9,4726.8,1.0091]
[1756034449559,0.2271,4727.2,4727.1,0.5308]
[1756034449764,0.2271,4727.2,4727.1,1.0091]
[1756034450172,0.3323,4729.1,4727.1,0.5308]
[1756034450470,0.4661,4728.7,4727.2,0.4783]
[1756034450671,0.50554877,4728.6,4727.4,0.2509]
[1756034450864,0.7984,4728.4,4727.5,0.2274]
[1756034451059,0.2271,4728.2,4727.5,0.2274]
[1756034451268,0.5298,4728.2,4728.1,1.0091]
[1756034451469,0.7569,4728.2,4728.1,1.0091]
[1756034451870,1.3282,4728.2,4728.1,1.0091]
[1756034456582,0.5298,4727.6,4727.5,0.5308]
[1756034456876,0.3323,4728.0,4727.5,1.1691]
[1756034457068,1.3282,4728.0,4727.9,1.0091]
[1756034457874,0.7569,4728.0,4727.9,1.0091]
[1756034458873,0.9959,4728.0,4727.9,1.0091]
[1756034459075,0.7569,4728.0,4727.9,1.0091]
[1756034459266,0.7984,4728.4,4727.9,1.1691]
[1756034459471,0.2271,4728.3,4728.2,1.0091]
[1756034459671,0.2271,4728.1,4727.6,0.4783]
[1756034459868,1.0892,4727.7,4727.6,1.0091]
[1756034460178,1.3282,4727.7,4727.6,1.0091]
[1756034460572,0.2271,4727.7,4727.6,1.1691]
[1756034460779,1.0892,4727.7,4727.6,1.0091]
[1756034460977,1.3282,4727.7,4727.6,1.0091]
[1756034461371,1.3282,4727.7,4727.6,0.154]
[1756034461576,1.3282,4727.7,4727.6,1.0091]
[1756034461779,0.7569,4727.7,4727.6,1.0091]
[1756034462877,0.5965,4727.7,4727.6,1.0091]
[1756034463083,0.5965,4727.7,4727.6,1.1691]
[1756034463884,0.7569,4727.7,4727.6,1.0091]
[1756034464084,1.3282,4727.7,4727.6,1.0091]
[1756034464675,1.3282,4727.7,4727.6,0.3063]
[1756034465077,1.3282,4727.7,4727.6,1.0091]
[1756034465284,0.3754,4727.7,4727.6,1.1691]
[1756034465876,0.5965,4727.7,4727.6,1.0091]
[1756034466073,0.7569,4727.7,4727.6,1.0091]
[1756034466482,0.5965,4727.7,4727.6,1.0091]
[1756034466877,0.7569,4727.7,4727.6,1.0091]
[1756034467078,0.5713,4728.1,4727.6,0.5308]
[1756034467272,0.2417,4728.0,4727.9,0.7874]
[1756034467479,0.2417,4728.0,4727.9,1.1653]
[1756034467985,0.7783,4728.0,4727.9,1.0064]
[1756034468186,0.7783,4728.0,4727.9,1.1653]
[1756034468780,0.7783,4728.0,4727.9,1.0064]
[1756034469581,0.2417,4728.0,4727.9,1.1653]
[1756034469782,0.3963,4728.0,4727.9,1.1653]
[1756034470388,0.2417,4728.0,4727.9,1.1653]
[1756034470588,0.3963,4728.0,4727.9,1.1653]
[1756034470789,1.3485,4728.0,4727.9,1.0064]
[1756034471288,0.7783,4728.0,4727.9,1.0064]
[1756034471882,0.2417,4728.0,4727.9,1.1653]
[1756034472388,0.3963,4728.0,4727.9,1.1653]
[1756034473488,1.3485,4728.0,4727.9,1.0064]
[1756034473680,0.5702,4728.4,4727.9,1.1653]
[1756034473879,1.1068,4728.4,4728.3,0.5381]
[1756034474079,1.1068,4728.4,4728.3,20.8924]
[1756034474483,1.3485,4728.4,4728.3,20.8924]
[1756034475384,0.2417,4728.4,4728.3,21.0513]
[1756034475584,0.3963,4729.1,4729.0,1.0064]
[1756034475786,1.3485,4729.1,4729.0,20.8924]
[1756034475991,1.3485,4729.1,4728.6,0.219]
[1756034476295,0.3447,4728.6,4728.2,0.219]
[1756034476594,1.3485,4728.3,4727.7,0.219]
[1756034476793,1.3485,4727.6,4727.5,2.79615784]
[1756034476998,0.5366,4727.3,4727.2,19.885]
[1756034477300,1.3485,4727.3,4727.2,19.885]
[1756034477796,0.5702,4727.8,4727.2,21.0503]
[1756034477997,0.31079101,4730.2,4727.6,0.5381]
[1756034477998,1.1068,4727.7,4727.6,0.5381]
[1756034478193,1.1068,4727.7,4727.6,1.0064]
[1756034478393,0.5702,4728.1,4727.6,1.1653]
[1756034478593,0.2417,4728.0,4727.7,0.6272]
[1756034478908,1.1068,4728.0,4727.9,1.0064]
[1756034479292,1.3485,4728.0,4727.9,1.0064]
[1756034479487,0.7783,4728.0,4727.9,1.0064]
[1756034479696,0.2255,4728.4,4727.9,1.1653]
[1756034479995,1.123,4728.7,4728.6,1.0064]
[1756034480291,1.3485,4728.7,4728.6,19.884]
[1756034480500,0.5366,4728.5,4728.4,19.884]
[1756034480694,0.2417,4728.0,4727.8,1.89567188]
[1756034480892,0.7783,4727.9,4727.8,0.5381]
[1756034481093,1.3485,4727.9,4727.8,1.0064]
[1756034481789,0.5702,4728.4,4727.8,1.1653]
[1756034481988,0.2417,4728.2,4728.1,0.5381]
[1756034482196,0.2417,4728.2,4728.1,1.1653]
[1756034482498,0.2417,4728.2,4728.1,1.0064]
[1756034482499,0.7783,4728.2,4728.1,1.0064]
[1756034482901,1.3485,4728.2,4728.1,1.0064]
[1756034483701,0.2417,4728.2,4728.1,20.8904]
[1756034483999,0.3963,4728.2,4728.1,20.8904]
[1756034484500,0.7783,4728.2,4728.1,20.8904]
[1756034484702,0.2417,4728.2,4728.1,20.8904]
[1756034485503,1.3485,4728.2,4728.1,20.8904]
[1756034489294,0.7783,4728.2,4728.1,21.0493]
[1756034489496,0.2417,4728.2,4728.1,21.0493]
[1756034489700,0.2417,4728.2,4728.1,21.22167568]
[1756034492101,0.0211,4729.8,4728.1,21.22167568]
[1756034492403,0.2255,4729.6,4728.4,0.6067]
[1756034492602,0.5864,4729.4,4728.4,0.6067]
[1756034492802,0.3963,4728.5,4728.4,1.0054]
[1756034493003,0.7783,4728.5,4728.4,1.17778834]
[1756034493204,1.3485,4728.5,4728.4,1.17778834]
[1756034493905,1.3485,4728.5,4728.4,1.17779841]
[1756034494108,1.3485,4728.5,4728.4,1.0054]
[1756034494502,0.5702,4728.2,4727.8,1.1636]
[1756034494707,0.2417,4728.1,4728.0,1.1636]
[1756034494909,0.5702,4728.5,4728.0,0.5381]
[1756034495108,1.3485,4728.4,4728.3,1.0054]
[1756034503609,1.3631,4728.4,4728.3,1.0054]
[1756034503817,0.5769,4728.9,4728.3,1.1646]
[1756034504018,0.2205,4728.7,4728.6,0.5225]
[1756034504209,0.2205,4728.7,4728.6,21.22126758]
[1756034504411,0.3757,4728.7,4728.6,21.22126758]
[1756034504717,1.3419,4728.7,4728.6,21.06206758]
[1756034508622,1.3419,4728.7,4728.6,21.06214046]
[1756034510521,1.3419,4728.7,4728.6,21.0621535]
[1756034511413,1.3419,4728.7,4728.6,21.2213535]
[1756034511613,1.3419,4728.7,4728.6,21.0621535]
[1756034512121,1.3419,4728.7,4728.6,21.2213535]
[1756034512323,1.3419,4728.7,4728.6,21.0621535]
[1756034512511,0.765,4728.7,4728.6,21.2213535]
[1756034513624,0.3398,4730.1,4729.6,0.5225]
[1756034513818,0.1,4730.2,4730.0,0.5225]
[1756034514027,0.1,4730.2,4730.1,21.29191763]
[1756034514215,0.1,4730.2,4730.1,21.1194]
[1756034514421,0.1,4730.2,4730.1,21.46052367]
[1756034514619,0.5769,4731.3,4730.1,25.46052367]
[1756034514815,1.1214,4731.3,4731.2,0.5225]
[1756034515022,1.1214,4731.3,4731.2,21.40541753]
[1756034515518,0.7816,4731.3,4731.2,21.40541753]
[1756034515723,0.5445,4731.3,4731.2,21.40541753]
[1756034516123,0.4576,4731.6,4731.2,21.40541753]
[1756034516325,1.3419,4731.6,4731.5,1.2514]
[1756034516626,1.3419,4731.6,4731.5,21.40441753]
[1756034517621,0.2205,4731.9,4731.5,21.40441753]
[1756034517824,0.0211,4732.6,4731.6,1.01491753]
[1756034518022,0.1552,4731.7,4731.6,1.2514]
[1756034518328,0.9627,4732.1,4732.0,1.2514]
[1756034518523,0.2371,4732.4,4732.0,21.39956728]
[1756034518723,0.3858,4732.2,4732.1,0.80766728]
[1756034518927,0.3858,4732.2,4732.1,1.53656728]
[1756034519529,0.2205,4732.4,4732.1,1.53656728]
[1756034519723,1.3419,4732.6,4732.5,0.5225]
[1756034519924,1.3419,4732.6,4732.5,21.39856728]
[1756034522131,0.2306,4732.6,4732.5,21.39856728]
[1756034522329,0.5603,4732.9,4732.6,0.4865]
[1756034522530,1.3419,4732.7,4732.6,1.2514]
[1756034522737,1.3419,4732.7,4732.6,1.5356241]
[1756034523229,0.3858,4732.7,4732.6,1.5356241]
[1756034523427,0.3858,4732.7,4732.6,1.2514]
[1756034523629,0.2371,4733.4,4733.3,0.3689]
[1756034523828,1.3419,4733.4,4733.3,21.1084]
[1756034524821,0.2205,4732.9,4732.5,0.2497]
[1756034525036,0.8843,4731.8,4731.7,1.2514]
[1756034525231,1.3419,4731.8,4731.7,21.38824463]
[1756034525539,1.3419,4731.8,4731.7,1.07694463]
[1756034525731,0.7816,4731.4,4731.3,0.6248]
[1756034525930,1.363,4731.4,4731.3,0.28378441]
[1756034526227,0.5445,4731.0,4730.9,19.853]
[1756034526433,1.3419,4731.0,4730.9,20.13680948]
[1756034526628,1.3419,4731.0,4730.9,20.3849]
[1756034526836,1.3419,4731.0,4730.9,20.8539]
[1756034527028,1.3419,4731.0,4730.9,21.0786]
[1756034527336,1.3419,4731.0,4730.9,21.36243484]
[1756034528230,0.5445,4731.0,4730.9,19.849]
[1756034529144,1.3338,4731.0,4730.9,19.849]
[1756034529528,0.8842,4731.0,4730.5,0.469]
[1756034529733,0.545,4729.9,4729.8,3.7978]
[1756034529931,1.3343,4729.9,4729.8,0.43272919]
[1756034530231,1.3343,4729.9,4729.8,0.84262919]
[1756034530841,1.3343,4729.9,4729.8,1.51782919]
[1756034532044,1.3343,4731.2,4731.1,1.2339]
[1756034532242,0.6107,4731.2,4731.1,1.2339]
[1756034532548,0.5661,4731.2,4730.7,0.2196]
[1756034532747,0.3951,4730.5,4730.4,0.6161]
[1756034532952,0.7695,4730.5,4730.4,1.51802391]
[1756034533150,1.1092,4730.5,4730.4,1.51802391]
[1756034533349,1.3343,4730.5,4730.4,1.51810753]
[1756034533652,0.7893,4730.9,4730.5,0.6937]
[1756034533852,0.7893,4732.4,4730.8,0.7649]
[1756034534050,0.7893,4732.2,4731.0,0.469]
[1756034534242,0.3862,4731.1,4731.0,1.0092]
[1756034534443,0.2363,4731.1,4731.0,1.51816367]
[1756034534951,1.3343,4731.1,4731.0,1.29346367]
[1756034535158,1.3343,4731.1,4731.0,21.14146367]
[1756034535658,1.3343,4731.1,4731.0,0.28426367]
[1756034536855,0.545,4731.1,4730.6,19.848]
[1756034537049,1.3343,4731.0,4730.9,0.1488]
[1756034537249,1.3343,4731.0,4730.9,0.43322064]
[1756034540151,1.3343,4731.0,4730.9,0.28442064]
[1756034542347,1.3343,4731.0,4730.5,0.2494]
[1756034542547,0.545,4730.7,4730.6,0.29502655]
[1756034542759,1.3343,4730.7,4730.6,0.44382655]
[1756034543857,1.3343,4730.7,4730.6,1.30422655]
[1756034544055,1.3343,4730.7,4730.6,1.52892655]
[1756034545861,1.3343,4730.7,4730.6,1.52912745]
[1756034546268,0.7695,4730.7,4730.6,1.52912745]
[1756034546660,1.3343,4730.7,4730.6,1.52912745]
[1756034546961,1.3343,4730.7,4730.6,1.30442745]
[1756034547666,1.3343,4730.7,4730.6,1.52912745]
[1756034549164,0.9946,4730.7,4730.6,1.52912745]
[1756034549560,0.7695,4730.7,4730.6,1.52912745]
[1756034549762,0.2245,4731.0,4730.9,1.2335]
[1756034550062,0.2245,4731.0,4730.9,1.52872745]
[1756034550260,40.8,4732.8,4731.5,0.3914]
[1756034550261,0.4496,4731.6,4731.5,0.3914]
[1756034550461,0.3397,4731.8,4731.5,1.52873442]
[1756034550657,0.3397,4731.8,4731.1,0.0211]
[1756034550658,1.1092,4731.8,4731.7,0.5402]
[1756034550959,1.1092,4731.8,4731.7,1.52873442]
[1756034550960,0.545,4731.8,4731.7,1.52873442]
[1756034551164,0.3862,4731.8,4731.7,1.52873442]
[1756034551467,0.7695,4731.8,4731.7,1.52873442]
[1756034551662,0.2251,4732.1,4732.0,0.5402]
[1756034551861,0.2245,4732.3,4732.1,0.4737]
[1756034552066,1.3343,4732.3,4732.2,1.2335]
[1756034552268,1.3343,4732.3,4732.2,1.52889052]
[1756034552664,0.7893,4733.4,4732.3,0.6933]
[1756034552867,0.50546795,4733.3,4732.4,0.54439052]
[1756034553170,0.0211,4734.1,4733.0,1.0088]
[1756034553171,1.1098,4733.1,4733.0,1.0088]
[1756034553372,0.3087,4733.1,4733.0,1.52893852]
[1756034553564,0.0211,4734.9,4733.0,0.83563852]
[1756034553763,0.7893,4734.6,4733.1,0.98873852]
[1756034553964,0.2363,4733.3,4733.2,1.05523852]
[1756034554163,0.3397,4733.6,4733.2,21.38703852]
[1756034554371,0.4496,4733.7,4733.5,1.2335]
[1756034554569,1.3343,4733.7,4733.6,1.52893852]
[1756034555459,1.3343,4733.7,4733.6,1.30933852]
[1756034555665,1.3343,4733.7,4733.6,0.29543852]
[1756034555965,1.3343,4732.4,4732.3,0.8721]
[1756034556371,1.3343,4732.4,4732.3,1.0917]
[1756034556568,0.3397,4732.8,4732.3,1.3164]
[1756034556767,0.3397,4732.8,4731.8,19.836]
[1756034556768,0.5696,4734.6,4732.6,0.82]
[1756034557067,0.50284943,4734.5,4732.8,0.2351]
[1756034557274,0.8008,4734.2,4732.9,0.5849]
[1756034557466,0.5398,4733.2,4733.1,1.1063]
[1756034557775,1.3406,4733.2,4733.1,1.1063]
[1756034558374,1.3406,4733.2,4733.1,1.3414]
[1756034558575,0.2388,4733.6,4733.1,0.5214]
[1756034558869,0.8008,4733.4,4733.0,0.5907]
[1756034559071,0.5398,4733.1,4733.0,0.877]
[1756034559373,1.3406,4733.1,4733.0,1.1063]
[1756034559766,1.3406,4733.1,4733.0,1.3414]
[1756034560975,0.771,4733.1,4733.0,1.3414]
[1756034561178,0.0211,4734.7,4733.0,0.5214]
[1756034561371,1.3406,4733.4,4733.3,0.5214]
[1756034561670,0.0211,4734.2,4732.6,0.2293]
[1756034561872,1.3406,4732.7,4732.6,1.3414]
[1756034562374,1.3406,4732.7,4732.6,0.1456]
[1756034562574,0.5398,4732.7,4732.2,20.4129]
[1756034562879,0.5398,4732.3,4732.2,20.3494]
[1756034563072,1.3406,4732.3,4732.2,0.5214]
[1756034563268,1.3406,4732.3,4732.2,0.1456]
[1756034563582,0.5398,4732.3,4731.8,19.826]
[1756034563880,0.5481,4732.6,4732.5,0.5214]
[1756034564174,1.3406,4732.6,4732.5,1.3414]
[1756034565175,1.3406,4732.6,4732.5,1.1063]
[1756034566178,1.0098,4732.6,4732.5,1.3414]
[1756034566375,1.3406,4732.6,4732.5,1.1063]
[1756034566878,0.2388,4733.0,4732.5,1.3414]
[1756034567179,1.3406,4732.9,4732.8,0.5214]
[1756034567376,1.3406,4732.9,4732.8,1.1063]
[1756034567874,1.3406,4732.9,4732.8,1.39697104]
[1756034568078,1.3406,4732.9,4732.8,0.29067104]
[1756034568981,1.3406,4732.9,4732.8,1.16767104]
[1756034569184,0.5696,4734.2,4732.8,1.04717104]
[1756034569479,0.5696,4734.2,4731.9,0.0211]
[1756034569480,0.0211,4734.6,4733.0,0.82]
[1756034569680,0.5398,4733.1,4733.0,1.3414]
[1756034569979,1.3406,4733.1,4733.0,1.63211303]
[1756034571476,0.2312,4733.7,4733.0,0.81211303]
[1756034571682,0.771,4733.7,4733.6,0.5214]
[1756034571974,1.3406,4733.7,4733.6,0.877]
[1756034572285,1.3406,4733.7,4733.6,1.1063]
[1756034573079,1.3406,4733.7,4733.6,1.3414]
[1756034573286,1.3406,4733.7,4733.6,1.6339135]
[1756034575378,1.3406,4733.7,4733.6,1.39895268]
[1756034576183,1.3406,4733.7,4733.6,0.81405268]
[1756034576785,1.3406,4733.7,4733.6,0.43825268]
[1756034577088,1.3406,4733.7,4733.6,1.01925268]
[1756034577285,1.3406,4733.7,4733.6,0.66365268]
[1756034577482,5.3406,4733.7,4733.6,0.29265268]
[1756034578573,5.3406,4733.7,4732.5,0.2293]
[1756034578574,0.1494,4732.6,4732.5,0.3797]
[1756034578783,1.3406,4732.6,4732.5,0.7507]
[1756034578983,1.3406,4732.6,4732.5,1.1063]
[1756034579183,1.3406,4732.6,4732.5,1.3414]
[1756034579584,1.3406,4732.6,4732.5,1.1063]
[1756034579774,1.3406,4732.6,4732.5,1.3414]
[1756034580579,1.3406,4732.6,4732.5,1.1063]
[1756034580984,1.3406,4732.6,4732.5,0.877]
[1756034581186,1.3406,4732.6,4732.5,0.7266]
[1756034581387,1.3406,4732.6,4732.5,1.1063]
[1756034581685,1.3406,4732.6,4732.5,1.3414]
[1756034582576,1.3406,4732.6,4732.5,0.9559]
[1756034582788,1.3406,4732.6,4732.5,1.3414]
[1756034587691,1.3406,4732.6,4732.5,1.1063]
[1756034588389,1.0098,4732.6,4732.5,1.3375]
[1756034588687,0.765,4732.9,4732.8,0.543]
[1756034588893,0.765,4732.9,4732.8,1.359]
[1756034589295,0.318,4732.9,4732.8,1.359]
[1756034589695,0.2227,4733.2,4732.8,0.543]
[1756034589993,1.003,4733.2,4733.1,1.359]
[1756034590590,1.003,4733.2,4733.1,1.64888983]
[1756034590790,1.003,4733.2,4733.1,1.6488899]
[1756034591896,0.765,4733.5,4733.4,1.359]
[1756034592098,1.3595,4733.5,4733.4,1.6488899]
[1756034594894,1.3595,4733.5,4733.4,0.2898899]
[1756034595299,1.3595,4733.5,4733.4,1.0161899]
[1756034595499,1.3595,4733.5,4733.4,0.2898899]
[1756034595698,1.3595,4733.5,4733.4,1.1757899]
[1756034597000,1.3595,4733.5,4733.4,1.4176899]
[1756034597391,1.3595,4733.5,4733.4,0.2898899]
[1756034597597,5.86518379,4733.5,4733.4,0.2898899]
[1756034598196,5.88628379,4733.5,4733.4,0.2898899]
[1756034599996,5.86518379,4733.5,4733.4,0.2898899]
[1756034600699,5.86518379,4733.5,4733.4,0.28991765]
[1756034601101,1.86518379,4733.5,4733.4,1.41771765]
[1756034601297,1.3595,4733.5,4733.4,1.41782883]
[1756034601504,1.86536497,4733.5,4733.4,1.17592883]
[1756034601696,1.86536497,4733.5,4733.4,0.29002883]
[1756034608513,1.86536497,4733.5,4733.4,1.17592883]
[1756034608714,1.86536497,4733.5,4733.4,1.41782883]
[1756034609512,1.86536497,4733.5,4733.4,1.64902883]
[1756034610604,1.86536497,4733.5,4733.4,1.64909727]
[1756034611216,0.82386497,4733.5,4733.4,1.64909727]
[1756034611617,0.318,4733.5,4733.4,1.64909727]
[1756034611820,0.5407,4733.5,4733.4,1.64909727]
[1756034612015,1.3595,4733.5,4733.4,1.64909727]
[1756034613919,1.3595,4733.5,4733.4,1.64906137]
[1756034617126,1.3595,4733.5,4733.4,1.64903969]
[1756034619118,1.3595,4733.5,4733.4,1.359]
[1756034619425,1.3595,4733.5,4733.4,1.64903428]
[1756034619628,1.3595,4733.5,4733.4,1.359]
[1756034620317,1.3595,4733.5,4733.4,1.64903231]
[1756034621727,1.3595,4733.5,4733.4,1.64902735]
[1756034624027,1.003,4733.5,4733.4,1.64902735]
[1756034624627,1.36,4733.5,4733.4,1.64902735]
[1756034628328,1.36,4733.5,4733.4,1.64902523]
[1756034629127,0.0211,4734.3,4733.4,1.64902523]
[1756034629128,0.2333,4734.1,4733.7,0.6848]
[1756034629331,0.2422,4734.1,4734.0,0.8996]
[1756034629516,0.6256,4734.3,4734.2,0.5534]
[1756034629826,1.3726,4734.3,4734.2,1.62762523]
[1756034631624,1.3726,4734.3,4734.2,1.3376]
[1756034631831,1.3726,4734.3,4734.2,1.63665217]
[1756034632027,1.0156,4734.3,4734.2,1.63665217]
[1756034632227,0.7854,4734.3,4734.2,1.63658665]
[1756034632528,0.8325,4734.6,4734.2,1.63658665]
[1756034632829,0.8971,4734.6,4734.5,0.5534]
[1756034633028,1.40148337,4734.6,4734.5,1.63658665]
[1756034633422,1.87698337,4734.6,4734.5,1.63658665]
[1756034633724,0.5432,4734.6,4734.5,1.63658665]
[1756034634032,0.7854,4734.6,4734.5,1.63658665]
[1756034635025,0.357,4735.0,4734.5,0.29898665]
[1756034635229,1.28971752,4734.9,4734.8,0.5534]
[1756034635428,1.87691752,4734.9,4734.8,0.5534]
[1756034635627,1.87691752,4734.9,4734.8,1.3376]
[1756034636225,1.87691752,4734.9,4734.4,0.7842]
[1756034636425,1.3726,4734.6,4734.5,0.29885002]
[1756034639333,1.87724388,4734.6,4734.5,0.29885002]
[1756034640227,1.87724388,4734.6,4734.5,1.63645002]
[1756034640533,1.3726,4734.6,4734.5,1.63645002]
[1756034640737,1.3726,4734.6,4734.5,1.41775002]
[1756034641033,1.3726,4734.6,4734.5,1.1189]
[1756034641225,1.3726,4734.6,4734.5,1.1985162]
[1756034641626,1.3726,4734.6,4734.5,1.19851616]
[1756034643035,1.3726,4734.6,4734.5,1.41781616]
[1756034643225,1.3726,4734.6,4734.5,1.63651616]
[1756034643636,0.7854,4734.6,4734.5,1.63651616]
[1756034643928,0.4755,4734.8,4734.7,1.3376]
[1756034644135,1.13029551,4734.8,4734.7,1.63644769]
[1756034644433,0.88809551,4734.8,4734.7,1.63644769]
[1756034644633,0.50469551,4734.8,4734.7,1.63644769]
[1756034644939,0.73799551,4734.8,4734.7,1.63644769]
[1756034645128,0.357,4735.1,4734.7,0.85224769]
[1756034645333,0.6256,4735.0,4734.9,1.3376]
[1756034645531,0.7854,4735.0,4734.9,1.63644769]
[1756034645843,0.8971,4735.9,4735.8,0.8996]
[1756034646030,1.39877718,4735.9,4735.8,0.8996]
[1756034646231,1.39877718,4735.9,4735.6,0.2193]
[1756034646428,1.3726,4735.4,4735.3,1.1189]
[1756034646632,1.87427718,4735.4,4735.3,0.8521095]
[1756034647028,1.87427718,4735.4,4735.3,1.2041095]
[1756034647440,1.87427718,4735.4,4735.3,1.4280095]
[1756034647738,1.87427718,4735.4,4735.3,1.6500095]
[1756034650234,1.51727718,4735.4,4735.3,1.6500095]
[1756034650438,0.81157718,4735.4,4735.3,1.3513]
[1756034650640,1.03577718,4735.4,4735.3,1.64992739]
[1756034650836,1.26187718,4735.4,4735.3,1.64992739]
[1756034651037,1.84267718,4735.4,4735.3,1.64992739]
[1756034653143,1.84267718,4735.4,4735.3,1.04372739]
[1756034653347,1.86377718,4735.4,4735.3,0.29862739]
[1756034653648,5.86377718,4735.4,4735.3,0.29862739]
[1756034655240,0.5367,4734.5,4734.4,0.352]
[1756034655438,1.3069,4734.5,4734.4,0.53785928]
[1756034655638,1.3069,4734.5,4734.4,0.18585928]
[1756034655947,1.3069,4734.5,4734.4,1.52475928]
[1756034657442,1.3069,4734.5,4734.4,0.18585928]
[1756034657645,1.80459811,4734.5,4734.4,0.18585928]
[1756034657944,1.80459811,4734.5,4734.4,0.42165928]
[1756034658442,1.80459811,4734.5,4734.4,1.07885928]
[1756034658644,1.80459811,4734.5,4734.4,1.30275928]
[1756034658844,1.80459811,4734.5,4734.4,1.52475928]
[1756034659045,1.3069,4734.5,4734.4,1.3389]
[1756034661050,1.3069,4734.5,4734.4,1.1169]
[1756034662152,1.3069,4734.5,4734.4,1.3389]
[1756034664645,0.757,4734.5,4734.4,1.3389]
[1756034664851,0.5309,4734.5,4734.4,1.3389]
[1756034665053,0.7702,4734.8,4734.4,1.3389]
[1756034665254,0.3067,4734.6,4734.5,0.541]
[1756034665451,1.3069,4734.6,4734.5,0.541]
[1756034666153,1.3069,4734.6,4734.5,1.3389]
[1756034667357,1.3069,4734.6,4734.5,1.63256739]
[1756034669254,1.3069,4734.6,4734.5,0.88146739]
[1756034669651,1.3069,4734.6,4734.5,1.02906739]
[1756034669858,1.3069,4734.6,4734.5,1.41056739]
[1756034670355,1.3069,4734.6,4734.5,1.41059645]
[1756034670558,1.3069,4734.6,4734.5,1.63259645]
[1756034673751,0.5309,4734.6,4734.5,1.63259645]
[1756034673957,0.6077,4734.8,4734.7,0.541]
[1756034674254,0.757,4734.8,4734.7,1.63259645]
[1756034674459,1.076,4734.8,4734.7,1.63259645]
[1756034674654,1.306,4734.8,4734.7,1.63259645]
[1756034675160,1.306,4734.8,4734.7,0.88149645]
[1756034675352,1.306,4734.8,4734.7,1.02909645]
[1756034675963,0.2242,4735.0,4734.7,0.83469645]
[1756034676260,0.4503,4735.0,4734.8,0.83469645]
[1756034676457,0.6077,4735.0,4734.9,1.63259645]
[1756034678265,0.0211,4736.6,4734.9,1.63259645]
[1756034678466,0.3018,4735.2,4735.1,0.7736]
[1756034678763,1.098,4735.2,4735.1,1.66159645]